bitfinex/quotes_SOLUSD_20240811
["timestamp","ask_amount","ask_price","bid_price","bid_amount"]
[1723420077154,23.46,141.96,141.9,23.0694]
[1723420077348,5.6362,141.94,141.9,28.7071]
[1723420077541,5.6362,141.94,141.9,23.0694]
[1723420078051,5.6362,141.94,141.9,16.5816]
[1723420079052,5.6362,141.94,141.9,22.2193]
[1723420079639,23.46,141.96,141.9,16.5816]
[1723420079948,14.086,141.99,141.88,19.7346]
[1723420079949,23.46,141.94,141.88,19.7346]
[1723420080151,5.6366,141.93,141.88,19.7346]
[1723420080353,5.6374,141.91,141.87,6.5634]
[1723420080663,23.46,141.88,141.83,21.8967]
[1723420080857,23.46,141.88,141.84,5.6397]
[1723420082365,43.46,141.9,141.86,0.12549]
[1723420082533,23.46,141.9,141.86,5.76469]
[1723420082859,23.46,141.9,141.86,14.22329]
[1723420083062,5.6368,141.93,141.88,0.12549]
[1723420083645,5.6368,141.93,141.88,5.76369]
[1723420084037,29.0968,141.93,141.88,5.76369]
[1723420084337,20.0,141.92,141.88,5.76369]
[1723420085156,23.46,141.93,141.89,5.638]
[1723420085465,23.46,141.93,141.89,7.04731783]
[1723420086340,23.46,141.93,141.89,5.638]
[1723420087571,23.46,141.93,141.88,14.22119]
[1723420089063,23.46,141.93,141.88,0.12549]
[1723420089392,5.6374,141.91,141.88,0.12549]
[1723420089572,5.637,141.92,141.88,0.12549]
[1723420090043,14.0891,141.96,141.85,14.099]
[1723420090044,23.46,141.91,141.85,14.099]
[1723420090248,23.46,141.89,141.85,19.7387]
[1723420090455,5.6386,141.88,141.83,27.5372]
[1723420090659,5.6386,141.88,141.83,21.2833]
[1723420092572,5.6386,141.88,141.84,5.64]
[1723420093664,23.46,141.89,141.85,14.099]
[1723420094055,29.0974,141.91,141.86,0.12549]
[1723420094249,20.0,141.9,141.86,5.76479]
[1723420095092,20.0,141.9,141.85,14.099]
[1723420095093,23.46,141.89,141.85,14.099]
[1723420095571,29.0982,141.89,141.85,14.099]
[1723420095758,29.0982,141.89,141.85,19.7387]
[1723420095759,23.46,141.89,141.85,19.7387]
[1723420096369,20.0,141.9,141.85,14.099]
[1723420096557,29.0973,141.91,141.86,5.6392]
[1723420097573,29.0973,141.91,141.87,5.76439]
[1723420098657,23.46,141.91,141.87,5.76439]
[1723420099049,23.46,141.91,141.88,5.6383]
[1723420100174,29.0966,141.93,141.89,5.6381]
[1723420101460,29.0966,141.93,141.88,5.6384]
[1723420101661,29.0966,141.93,141.87,14.47317]
[1723420101662,5.637,141.92,141.87,14.47317]
[1723420101863,5.637,141.92,141.87,20.11197]
[1723420102073,29.0965,141.93,141.87,14.47317]
[1723420102387,29.0965,141.93,141.88,0.12549]
[1723420102585,29.0965,141.93,141.88,0.25098]
[1723420103683,29.0965,141.93,141.88,5.88928]
[1723420105194,5.6371,141.92,141.87,19.86109]
[1723420105488,5.6373,141.91,141.87,19.86109]
[1723420105986,29.0973,141.91,141.87,19.86109]
[1723420106890,23.46,141.91,141.87,19.86109]
[1723420107265,23.46,141.91,141.87,19.7356]
[1723420107765,29.0974,141.91,141.87,14.0967]
[1723420108585,29.0974,141.91,141.87,19.7355]
[1723420109167,23.46,141.91,141.87,19.7355]
[1723420109988,23.46,141.91,141.88,5.6384]
[1723420110381,23.46,141.91,141.89,5.638]
[1723420110574,5.6362,141.94,141.87,14.22219]
[1723420110575,23.46,141.93,141.88,0.12549]
[1723420110773,23.46,141.93,141.88,0.37647]
[1723420111096,23.46,141.91,141.87,14.0967]
[1723420111903,23.46,141.91,141.87,19.7353]
[1723420112895,23.46,141.91,141.89,5.638]
[1723420114793,23.46,141.93,141.89,5.638]
[1723420115394,29.0966,141.93,141.89,5.638]
[1723420115597,29.0966,141.93,141.88,5.6385]
[1723420115802,23.46,141.91,141.87,19.7356]
[1723420116003,29.0985,141.89,141.84,14.0998]
[1723420116204,23.46,141.89,141.84,14.0998]
[1723420116369,23.46,141.89,141.87,5.6388]
[1723420117002,23.46,141.89,141.86,5.6393]
[1723420117294,23.46,141.89,141.87,5.6387]
[1723420117873,23.46,141.89,141.86,19.7371]
[1723420120494,23.46,141.89,141.86,14.0979]
[1723420121915,11.71,141.88,141.86,14.0979]
[1723420122124,11.71,141.88,141.86,19.7371]
[1723420122493,11.71,141.89,141.86,19.7371]
[1723420122684,53.35679621,141.96,141.89,5.638]
[1723420122890,5.6361,141.94,141.89,5.638]
[1723420123211,11.71,141.92,141.88,14.0955]
[1723420123401,11.71,141.91,141.89,5.638]
[1723420124012,23.4,141.92,141.89,5.638]
[1723420124214,29.0371,141.92,141.88,14.0955]
[1723420124714,29.0371,141.92,141.88,19.7339]
[1723420124892,23.4,141.92,141.88,19.7339]
[1723420125094,23.4,141.92,141.89,5.638]
[1723420127400,23.4,141.92,141.88,19.734]
[1723420127603,29.0371,141.92,141.88,19.734]
[1723420128003,23.4,141.9,141.86,5.6392]
[1723420128399,23.4,141.9,141.85,42.297]
[1723420128400,23.4,141.9,141.85,14.0988]
[1723420128606,23.4,141.88,141.85,14.0988]
[1723420130029,29.0385,141.88,141.83,5.6405]
[1723420130327,21.9321,141.91,141.83,5.6405]
[1723420130328,23.4,141.86,141.83,5.6405]
[1723420130832,23.4,141.86,141.79,1.22681843]
[1723420131134,5.6414,141.81,141.76,19.7508]
[1723420131429,23.4,141.79,141.76,19.7511]
[1723420131812,23.4,141.79,141.77,5.6427]
[1723420132198,23.4,141.81,141.78,5.6425]
[1723420134319,23.4,141.81,141.77,5.6429]
[1723420135625,29.0413,141.81,141.77,5.6429]
[1723420136609,23.4,141.81,141.77,5.6429]
[1723420138403,29.0414,141.81,141.76,19.751]
[1723420138609,5.6419,141.8,141.76,14.1078]
[1723420139011,29.0413,141.81,141.76,19.751]
[1723420139212,23.4,141.81,141.77,5.6428]
[1723420139509,23.4,141.81,141.73,16.5672]
[1723420139707,23.4,141.81,141.72,7.37455277]
[1723420139708,5.6437,141.75,141.72,7.37455277]
[1723420139946,5.6443,141.74,141.7,14.1141]
[1723420140108,5.6446,141.73,141.67,15.906]
[1723420140306,0.12549,141.77,141.67,30.023]
[1723420140531,14.1084,141.76,141.63,30.0264]
[1723420140834,23.4,141.7,141.63,30.0264]
[1723420141038,23.4,141.7,141.66,5.6473]
[1723420141339,23.4,141.7,141.67,5.6468]
[1723420142635,23.4,141.7,141.62,14.02334263]
[1723420142636,23.4,141.68,141.62,7.37744263]
[1723420142937,23.4,141.66,141.63,5.6481]
[1723420143122,23.4,141.66,141.62,5.6488]
[1723420143543,23.4,141.66,141.63,5.6483]
[1723420145342,23.4,141.66,141.62,5.6488]
[1723420145527,23.4,141.66,141.61,19.7716]
[1723420145728,23.4,141.64,141.61,14.1224]
[1723420146026,29.0482,141.64,141.59,5.6497]
[1723420146227,23.4,141.62,141.59,5.6497]
[1723420146663,23.4,141.62,141.58,19.7765]
[1723420147730,23.4,141.6,141.58,14.1261]
[1723420148263,23.4,141.62,141.58,14.1261]
[1723420148854,23.4,141.62,141.59,5.65]
[1723420149634,23.4,141.62,141.58,14.1261]
[1723420149837,23.4,141.62,141.58,19.7762]
[1723420150141,23.4,141.62,141.59,5.65]
[1723420150953,23.4,141.6,141.54,14.1293]
[1723420151160,6.0815,141.63,141.56,5.6513]
[1723420151452,6.0815,141.63,141.56,14.1275]
[1723420151647,16.5145,141.66,141.58,14.1256]
[1723420151852,20.0,141.65,141.58,14.1256]
[1723420152037,5.6484,141.64,141.59,5.65]
[1723420152241,16.5145,141.66,141.55,14.129]
[1723420152242,23.4,141.61,141.55,14.129]
[1723420153453,5.65,141.6,141.55,19.7803]
[1723420154857,25.6488,141.63,141.58,5.6504]
[1723420155061,23.4,141.62,141.58,5.6504]
[1723420155732,23.4,141.62,141.59,5.65]
[1723420155947,29.0481,141.64,141.57,14.25219]
[1723420156133,23.4,141.62,141.58,5.6503]
[1723420156547,5.6494,141.61,141.57,14.1267]
[1723420156749,29.049,141.62,141.57,19.7775]
[1723420159464,5.6493,141.61,141.57,14.1267]
[1723420159672,23.4,141.59,141.54,19.7818]
[1723420159960,23.4,141.57,141.54,19.7818]
[1723420160142,23.4,141.57,141.55,5.6516]
[1723420160332,5.6498,141.6,141.55,5.6516]
[1723420160672,5.6494,141.61,141.54,14.1298]
[1723420160954,20.0,141.6,141.54,14.1298]
[1723420161662,20.0,141.6,141.56,5.6512]
[1723420162162,29.0501,141.59,141.54,19.7815]
[1723420162734,5.6505,141.58,141.54,14.1298]
[1723420163162,22.29,141.59,141.54,19.7817]
[1723420163365,16.6398,141.59,141.5,14.1336]
[1723420163659,5.6514,141.56,141.52,5.6528]
[1723420164840,5.6518,141.55,141.5,19.7872]
[1723420165067,0.25098,141.57,141.5,19.7872]
[1723420165362,5.6521,141.54,141.5,14.1336]
[1723420166056,5.6521,141.54,141.45,43.3743]
[1723420166057,0.25098,141.56,141.48,5.6544]
[1723420166248,5.6526,141.53,141.49,5.654]
[1723420166766,5.6521,141.54,141.49,5.654]
[1723420167063,12.17889,141.56,141.51,5.6531]
[1723420167268,20.0,141.55,141.51,5.6531]
[1723420168168,20.0,141.55,141.52,5.6528]
[1723420168464,5.6518,141.55,141.49,14.1347]
[1723420168643,12.0531,141.56,141.51,5.6529]
[1723420169363,45.0,141.58,141.51,14.1326]
[1723420169364,5.6506,141.58,141.51,14.1326]
[1723420169867,5.6506,141.58,141.53,5.6524]
[1723420170069,16.6398,141.59,141.53,5.6524]
[1723420170070,5.6509,141.57,141.53,5.6524]
[1723420170262,5.6509,141.57,141.52,5.6528]
[1723420171351,29.0517,141.55,141.51,19.7857]
[1723420171657,23.4,141.55,141.51,19.7857]
[1723420173672,23.4,141.55,141.52,5.6528]
[1723420174045,23.4,141.55,141.51,14.1326]
[1723420174247,29.0518,141.55,141.51,19.7858]
[1723420174870,5.6509,141.57,141.52,5.6528]
[1723420175254,45.6899,141.59,141.54,5.652]
[1723420175445,20.0,141.58,141.54,5.652]
[1723420175847,40.0398,141.59,141.55,5.6516]
[1723420176350,40.0398,141.59,141.53,14.1307]
[1723420176351,45.69,141.59,141.54,5.652]
[1723420177757,45.69,141.59,141.55,5.6517]
[1723420178058,40.0398,141.59,141.55,5.6517]
[1723420179376,16.1078,141.63,141.55,14.1287]
[1723420179578,45.1564,141.63,141.58,5.6501]
[1723420180078,5.6489,141.62,141.57,19.7776]
[1723420183053,5.6489,141.62,141.58,5.6504]
[1723420183252,5.6489,141.62,141.57,19.7776]
[1723420184360,5.6489,141.62,141.58,5.6504]
[1723420185057,45.1564,141.63,141.58,5.6504]
[1723420188957,5.6489,141.62,141.58,5.6504]
[1723420189679,45.1564,141.63,141.58,5.6504]
[1723420193381,5.649,141.62,141.58,5.6504]
[1723420193687,29.0493,141.61,141.57,19.7776]
[1723420196384,23.4,141.59,141.54,14.1299]
[1723420196575,23.4,141.59,141.54,19.7817]
[1723420196576,29.0504,141.59,141.54,19.7817]
[1723420196787,23.4,141.57,141.54,19.7817]
[1723420196969,23.4,141.57,141.55,5.6515]
[1723420199383,23.4,141.57,141.56,5.6513]
[1723420199686,23.4,141.59,141.56,5.6513]
[1723420200189,23.4,141.59,141.57,5.6508]
[1723420200394,23.4,141.59,141.56,19.7788]
[1723420200967,23.4,141.59,141.55,5.6516]
[1723420201166,23.4,141.59,141.56,5.6512]
[1723420204390,23.4,141.59,141.55,19.7801]
[1723420204598,23.4,141.59,141.56,5.6513]
[1723420207904,11.75,141.59,141.56,5.6513]
[1723420208472,16.1078,141.63,141.56,0.12549]
[1723420209297,16.1078,141.63,141.59,14.1248]
[1723420209602,26.7502,141.66,141.62,5.6488]
[1723420209974,20.6476,141.66,141.62,5.6488]
[1723420210174,20.6476,141.66,141.61,19.7719]
[1723420210386,5.6478,141.65,141.61,14.1227]
[1723420210589,29.1378,141.65,141.61,14.1227]
[1723420211589,15.0002,141.66,141.58,0.12549]
[1723420211590,5.6489,141.62,141.58,14.1259]
[1723420211900,5.6489,141.62,141.57,5.6506]
[1723420211901,5.649,141.62,141.57,5.6506]
[1723420212579,5.6493,141.61,141.57,5.6506]
[1723420212779,29.1393,141.61,141.56,5.6511]
[1723420212975,5.6497,141.6,141.56,5.6511]
[1723420213796,29.1394,141.61,141.57,5.6509]
[1723420214003,6.4399,141.62,141.57,14.1266]
[1723420214771,5.6482,141.64,141.6,5.6497]
[1723420215884,5.6477,141.65,141.6,5.6497]
[1723420216083,21.0494,141.66,141.61,14.1227]
[1723420216084,44.5394,141.66,141.61,14.1227]
[1723420216400,21.0494,141.66,141.62,5.6488]
[1723420216579,44.5394,141.66,141.59,5.6497]
[1723420216784,44.5394,141.66,141.6,0.12549]
[1723420217101,5.6482,141.64,141.58,14.1257]
[1723420217411,23.49,141.64,141.58,14.1257]
[1723420217904,23.49,141.64,141.58,19.7761]
[1723420217905,5.6485,141.63,141.58,19.7761]
[1723420219912,23.49,141.64,141.58,14.1257]
[1723420220202,5.6478,141.65,141.58,14.1257]
[1723420220404,5.6478,141.65,141.59,0.12549]
[1723420221505,23.49,141.65,141.59,5.65]
[1723420221705,23.49,141.65,141.58,19.7761]
[1723420221885,5.6486,141.63,141.58,19.7761]
[1723420222086,5.6486,141.63,141.59,5.65]
[1723420222291,29.138,141.65,141.6,5.6496]
[1723420222591,23.49,141.65,141.61,5.6492]
[1723420222797,29.1378,141.65,141.61,5.6492]
[1723420223415,29.1378,141.65,141.6,19.7731]
[1723420223910,5.6485,141.64,141.6,14.1235]
[1723420224287,29.1386,141.63,141.57,14.1267]
[1723420224521,29.1386,141.63,141.58,5.6501]
[1723420224522,5.6489,141.62,141.58,5.6501]
[1723420224894,29.1386,141.63,141.59,5.65]
[1723420226618,5.649,141.62,141.58,5.6504]
[1723420226785,5.649,141.62,141.57,19.7775]
[1723420227116,14.1197,141.65,141.57,19.7775]
[1723420227619,45.0,141.64,141.57,19.7775]
[1723420227797,23.49,141.62,141.57,19.7775]
[1723420228516,29.139,141.62,141.57,19.7775]
[1723420228811,23.49,141.62,141.58,5.6503]
[1723420229011,23.49,141.62,141.59,5.6499]
[1723420229186,5.6481,141.64,141.59,5.6499]
[1723420229700,5.6477,141.65,141.59,14.1247]
[1723420229898,26.6967,141.66,141.6,1.40968315]
[1723420230105,26.6967,141.66,141.61,5.6492]
[1723420230613,26.6967,141.66,141.58,0.12549]
[1723420230614,23.49,141.65,141.58,0.12549]
[1723420230788,14.1202,141.65,141.55,0.12549]
[1723420230995,5.649,141.62,141.57,5.6506]
[1723420231219,5.649,141.62,141.57,5.6508]
[1723420231605,5.6489,141.62,141.57,5.6508]
[1723420231989,5.6489,141.62,141.58,5.6504]
[1723420232210,29.1385,141.63,141.58,5.6504]
[1723420232413,5.6489,141.62,141.58,5.6504]
[1723420232616,29.1388,141.63,141.58,5.6504]
[1723420232798,5.6489,141.62,141.57,14.1264]
[1723420233109,5.6489,141.62,141.57,19.7772]
[1723420233496,5.6493,141.61,141.57,14.1264]
[1723420233917,5.6493,141.61,141.56,5.6512]
[1723420235934,11.75,141.6,141.56,5.6512]
[1723420236820,17.3993,141.61,141.56,5.6512]
[1723420237039,17.3998,141.6,141.55,5.6516]
[1723420237199,17.3998,141.6,141.53,24.1590408]
[1723420237200,21.6432,141.6,141.53,7.3705508]
[1723420237402,21.6432,141.6,141.51,14.1328]
[1723420238022,23.52,141.58,141.54,5.652]
[1723420238523,29.1706,141.58,141.53,5.6524]
[1723420238701,23.52,141.58,141.51,14.1328]
[1723420239115,5.6511,141.57,141.52,5.6526]
[1723420240208,29.1713,141.56,141.52,5.6526]
[1723420240814,23.52,141.56,141.52,5.6526]
[1723420241016,23.52,141.56,141.51,14.1328]
[1723420241321,23.52,141.54,141.5,5.6536]
[1723420241527,23.52,141.54,141.48,14.1357]
[1723420241528,23.52,141.54,141.51,5.6532]
[1723420242230,23.52,141.56,141.53,5.6525]
[1723420242413,23.52,141.56,141.52,19.7845]
[1723420242927,23.52,141.59,141.54,5.6517]
[1723420243227,23.52,141.59,141.55,5.6515]
[1723420243829,27.2929,141.6,141.55,5.6515]
[1723420244125,27.2929,141.6,141.56,5.6512]
[1723420244428,29.1694,141.61,141.57,5.6508]
[1723420244621,23.52,141.61,141.57,5.6508]
[1723420245124,35.4902,141.63,141.59,5.65]
[1723420245332,22.128,141.64,141.6,5.6496]
[1723420245701,16.4798,141.64,141.6,5.6496]
[1723420246131,16.4798,141.64,141.58,14.1257]
[1723420247828,5.6486,141.63,141.58,19.7761]
[1723420248034,29.1686,141.63,141.58,19.7761]
[1723420248411,29.1686,141.63,141.59,5.65]
[1723420249534,23.52,141.63,141.59,5.65]
[1723420249724,29.1685,141.63,141.59,5.65]
[1723420250230,23.52,141.63,141.6,5.6496]
[1723420250935,23.52,141.63,141.6,5.6495]
[1723420252317,29.1685,141.63,141.58,19.7759]
[1723420252630,23.52,141.63,141.59,5.65]
[1723420253127,23.52,141.63,141.6,5.6496]
[1723420253428,16.4798,141.64,141.6,5.6496]
[1723420254540,22.1279,141.64,141.59,5.65]
[1723420255912,16.4798,141.64,141.58,14.1257]
[1723420256528,5.6486,141.63,141.58,19.7761]
[1723420258028,5.6489,141.62,141.58,19.7761]
[1723420258230,5.6489,141.62,141.55,34.49389]
[1723420258231,5.6489,141.62,141.57,5.6508]
[1723420258611,5.6489,141.62,141.58,5.6505]
[1723420259018,16.4798,141.64,141.59,5.6499]
[1723420259212,16.4798,141.64,141.57,14.1266]
[1723420259622,22.128,141.64,141.59,5.6498]
[1723420260226,22.1279,141.64,141.6,5.6496]
[1723420260427,11.75,141.63,141.6,5.6496]
[1723420260726,11.75,141.63,141.59,5.65]
[1723420261442,11.75,141.63,141.6,5.6496]
[1723420262414,11.75,141.63,141.59,5.65]
[1723420262942,11.75,141.63,141.58,0.12549]
[1723420263235,17.9794,141.66,141.59,25.8746]
[1723420263439,6.2294,141.66,141.62,5.6487]
[1723420263732,6.2294,141.66,141.61,19.7717]
[1723420263733,11.8767,141.66,141.61,19.7717]
[1723420264134,6.2294,141.66,141.61,19.7717]
[1723420264345,6.2294,141.66,141.63,5.6484]
[1723420264524,11.8887,141.7,141.65,5.6474]
[1723420264725,5.6462,141.69,141.64,19.7675]
[1723420264919,17.3962,141.69,141.64,19.7675]
[1723420265629,5.647,141.67,141.62,5.6488]
[1723420265942,6.2429,141.7,141.61,14.1229]
[1723420265943,17.3977,141.65,141.61,14.1229]
[1723420266128,11.75,141.65,141.61,19.7721]
[1723420266621,17.3977,141.65,141.61,19.7721]
[1723420267023,17.3977,141.65,141.61,14.1229]
[1723420267231,17.3977,141.65,141.61,19.7722]
[1723420268121,5.6477,141.65,141.61,19.7722]
[1723420268326,20.3579,141.7,141.61,19.7722]
[1723420268327,5.6474,141.66,141.61,19.7722]
[1723420268525,17.3974,141.66,141.61,19.7722]
[1723420270438,17.3974,141.66,141.62,5.6488]
[1723420270948,20.3579,141.7,141.63,5.6484]
[1723420270949,17.3969,141.67,141.63,5.6484]
[1723420271128,17.3969,141.67,141.62,5.6488]
[1723420271446,20.3579,141.7,141.61,14.1229]
[1723420271447,17.3974,141.66,141.61,14.1229]
[1723420271741,17.3974,141.66,141.61,19.7718]
[1723420271951,6.2429,141.7,141.62,0.12549]
[1723420272134,11.75,141.67,141.63,5.6481]
[1723420272314,17.9929,141.7,141.64,0.12549]
[1723420272714,23.6386,141.7,141.64,0.12549]
[1723420272935,6.2429,141.7,141.66,5.6472]
[1723420273149,17.9929,141.7,141.66,5.6472]
[1723420273732,33.856,141.71,141.66,5.6472]
[1723420274744,5.645,141.72,141.67,5.6468]
[1723420274950,17.3945,141.73,141.68,5.6463]
[1723420277526,5.645,141.72,141.68,5.6463]
[1723420278558,5.6446,141.73,141.68,5.6464]
[1723420278753,17.3946,141.73,141.68,5.6464]
[1723420279245,5.6449,141.72,141.68,5.6464]
[1723420280147,17.3945,141.73,141.68,5.6464]
[1723420280353,17.3945,141.73,141.69,5.646]
[1723420280551,21.6786,141.75,141.69,14.1146]
[1723420280846,5.644,141.75,141.69,25.8646]
[1723420281044,17.3934,141.76,141.71,5.6452]
[1723420281230,14.1079,141.77,141.66,14.1177]
[1723420281431,5.645,141.72,141.67,5.6468]
[1723420281630,11.75,141.71,141.67,5.6468]
[1723420282853,17.3954,141.71,141.66,14.1177]
[1723420283454,11.75,141.69,141.64,15.106]
[1723420283659,11.75,141.69,141.65,5.6477]
[1723420283850,11.75,141.69,141.66,5.647]
[1723420284051,16.635,141.73,141.67,5.6468]
[1723420284250,11.75,141.71,141.68,5.6464]
[1723420284562,11.75,141.71,141.67,5.6468]
[1723420285424,11.75,141.7,141.66,5.6472]
[1723420286231,5.6454,141.71,141.66,5.6472]
[1723420286537,17.3954,141.71,141.67,5.6468]
[1723420286753,11.75,141.71,141.67,5.6468]
[1723420287533,17.3952,141.72,141.67,5.6468]
[1723420287726,5.6438,141.75,141.68,45.12549]
[1723420287927,276.0864,141.77,141.71,5.6451]
[1723420287928,15.4864,141.77,141.71,5.6451]
[1723420288137,5.6436,141.76,141.71,5.6451]
[1723420288537,21.1293,141.77,141.72,5.6446]
[1723420288857,11.75,141.75,141.72,5.6446]
[1723420289048,11.75,141.76,141.72,5.6446]
[1723420290062,32.8793,141.77,141.72,5.6446]
[1723420290445,17.3933,141.76,141.72,5.6446]
[1723420290739,5.6433,141.76,141.72,5.6446]
[1723420290952,21.1294,141.77,141.72,5.6446]
[1723420291136,11.75,141.76,141.72,5.6446]
[1723420291330,17.3933,141.76,141.72,5.6446]
[1723420291530,17.3933,141.76,141.71,14.1125]
[1723420291531,11.75,141.75,141.71,19.7577]
[1723420291838,11.75,141.73,141.7,5.6456]
[1723420293439,11.75,141.75,141.71,5.6452]
[1723420294542,11.75,141.75,141.72,5.6448]
[1723420295361,11.75,141.76,141.72,5.6448]
[1723420295663,17.3933,141.76,141.71,5.6452]
[1723420296466,17.3933,141.76,141.7,14.1137]
[1723420296467,17.3937,141.75,141.7,19.7593]
[1723420296663,11.75,141.74,141.7,19.7593]
[1723420297368,11.75,141.74,141.53,48.2612]
[1723420297369,11.75,141.74,141.66,14.1173]
[1723420297536,17.3954,141.71,141.66,19.7645]
[1723420297736,11.75,141.7,141.66,19.7645]
[1723420298652,11.75,141.7,141.67,5.6467]
[1723420298977,11.75,141.71,141.67,5.6467]
[1723420299340,20.12549,141.7,141.61,7.3599542]
[1723420299542,11.75,141.64,141.6,5.6496]
[1723420299757,36.39109,141.67,141.57,16.4759]
[1723420299941,17.3989,141.62,141.57,30.6028]
[1723420300156,11.75,141.62,141.57,16.4759]
[1723420300344,6.2318,141.65,141.56,5.6509]
[1723420300345,11.75,141.6,141.56,5.6509]
[1723420300835,5.6489,141.62,141.57,5.6507]
[1723420301037,11.75,141.61,141.58,5.6503]
[1723420301274,11.75,141.63,141.59,5.6501]
[1723420301444,16.39109,141.67,141.59,5.6501]
[1723420301445,12.0997,141.69,141.64,5.6479]
[1723420301648,5.6465,141.68,141.63,14.1209]
[1723420301966,23.48,141.66,141.6,14.1242]
[1723420302340,5.648,141.65,141.6,19.7738]
[1723420302562,5.6486,141.63,141.58,5.6504]
[1723420303746,29.1286,141.63,141.58,5.6504]
[1723420304040,23.48,141.63,141.58,14.1255]
[1723420304246,23.48,141.63,141.59,5.6497]
[1723420304599,45.1828,141.65,141.6,5.6496]
[1723420304856,5.6481,141.64,141.59,5.65]
[1723420305062,45.1827,141.65,141.6,5.6496]
[1723420305635,6.4533,141.69,141.6,14.1233]
[1723420305636,23.48,141.67,141.6,14.1233]
[1723420305863,29.1269,141.67,141.6,14.1233]
[1723420306065,5.6473,141.66,141.61,5.649]
[1723420307135,29.1269,141.67,141.62,5.6489]
[1723420307342,29.1269,141.67,141.6,14.1233]
[1723420307343,23.48,141.67,141.63,5.6484]
[1723420307543,6.4533,141.69,141.66,5.6472]
[1723420307544,23.48,141.69,141.66,5.6472]
[1723420307771,28.1665,141.72,141.67,5.6468]
[1723420308164,5.6453,141.71,141.67,5.6468]
[1723420308471,5.6457,141.7,141.66,5.6472]
[1723420308672,5.6453,141.71,141.66,5.6472]
[1723420308966,51.6463,141.72,141.67,5.6468]
[1723420309170,5.6453,141.71,141.66,5.6473]
[1723420309866,5.6457,141.7,141.65,5.6476]
[1723420310678,22.5213,141.72,141.64,14.1195]
[1723420310845,5.6457,141.7,141.66,5.6473]
[1723420311045,23.48,141.72,141.69,5.646]
[1723420311244,5.6444,141.74,141.69,5.646]
[1723420311245,29.1244,141.74,141.69,5.646]
[1723420311543,5.6445,141.73,141.69,5.646]
[1723420312243,23.48,141.74,141.69,5.646]
[1723420312244,29.1242,141.74,141.69,5.646]
[1723420312469,5.6446,141.73,141.68,19.7621]
[1723420312653,5.6446,141.73,141.69,5.646]
[1723420313150,5.6446,141.73,141.68,14.1156]
[1723420313570,5.6446,141.73,141.68,19.7619]
[1723420313959,5.6449,141.72,141.68,14.1156]
[1723420314146,5.646,141.7,141.65,19.7666]
[1723420314354,29.126,141.7,141.65,19.7666]
[1723420314670,5.6461,141.69,141.65,14.119]
[1723420315063,5.6461,141.69,141.64,5.648]
[1723420315064,29.1273,141.66,141.62,14.1219]
[1723420315267,29.1266,141.68,141.63,5.6484]
[1723420315646,29.1266,141.68,141.64,5.6481]
[1723420315850,29.1266,141.68,141.63,5.6484]
[1723420316078,5.6469,141.67,141.62,19.7707]
[1723420316768,21.9557,141.68,141.59,28.2502]